fUSD/lending_fUSD_20240201
["ID","MTS","AMOUNT","RATE_DAILY","PERIOD"]
[313117225,1706765442785,-2278.81377185,0.00033862,3]
[313117226,1706765442809,-666.41,0.00033862,3]
[313117227,1706765442821,-602.22017709,0.00033862,3]
[313117228,1706765442866,-4824.07128542,0.00033862,3]
[313117229,1706765442877,-803.3867775,0.00033862,3]
[313117230,1706765442889,-6649.251936,0.00033862,3]
[313117231,1706765442900,-4950.14600257,0.00033862,3]
[313117242,1706765445600,-500.0,0.00032876,2]
[313117243,1706765445611,-1074.12,0.00032876,2]
[313117244,1706765445622,-815.67,0.00032891,2]
[313117245,1706765445631,-272.70358166,0.00033424,2]
[313117246,1706765445656,-1328.96,0.00032876,2]
[313117247,1706765445666,-227.29641834,0.00033424,2]
[313117248,1706765445675,-500.0,0.00033424,2]
[313117249,1706765445685,-1074.12,0.00033424,2]
[313117250,1706765445695,-4687.9293251,0.00033862,3]
[313117251,1706765447363,-271.17,0.0002897,2]
[313117252,1706765447373,-162.60264747,0.00031234,2]
[313117253,1706765447422,-108.56735253,0.00031234,2]
[313117254,1706765447431,-914.1052755,0.00033424,2]
[313117255,1706765447442,-414.8547245,0.00033424,2]
[313117256,1706765447452,-385.1452755,0.00033439,2]
[313117257,1706765447599,-430.5247245,0.00033439,2]
[313117258,1706765447609,-271.17,0.00033498,2]
[313117259,1706765447618,-356.79696148,0.00033861,7]
[313117260,1706765447627,-500.0,0.00033861,7]
[313117261,1706765447637,-585.15897449,0.00033861,7]
[313117262,1706765447646,-500.0,0.00033861,7]
[313117263,1706765447656,-500.0,0.00033861,7]
[313117264,1706765447665,-500.0,0.00033861,7]
[313117265,1706765447674,-363.71014802,0.00033861,7]
[313117266,1706765447684,-500.0,0.00033861,7]
[313117267,1706765447693,-500.0,0.00033861,7]
[313117268,1706765447703,-199.46697318,0.00033861,7]
[313117269,1706765447712,-500.0,0.00033861,7]
[313117270,1706765447721,-500.0,0.00033861,7]
[313117271,1706765447731,-574.13371176,0.00033861,7]
[313117272,1706765447740,-181.81678736,0.00033861,7]
[313117273,1706765447752,-142.63949729,0.00033861,7]
[313117274,1706765449338,200.0,0.00025,2]
[313117275,1706765457029,360.31303706,0.00025,2]
[313117276,1706765458181,155.0,0.00025,2]
[313117277,1706765459111,7789.36696294,0.00025,2]
[313117279,1706766631724,-469.13636334,0.00022983,2]
[313117280,1706766631783,-36.31403722,0.00022983,2]
[313117281,1706766631792,-155.0,0.00022984,2]
[313117282,1706766631801,-590.99260097,0.00022984,2]
[313117283,1706766631835,-2319.00888784,0.00022984,2]
[313117284,1706766631843,-302.1607977,0.00022985,2]
[313117285,1706766631852,-155.0,0.00022985,2]
[313117286,1706766631861,-165.33975295,0.00022986,2]
[313117287,1706766631870,-203.90995019,0.00022986,2]
[313117288,1706766631880,-2628.01064,0.00022987,2]
[313117289,1706766631889,-224.04406869,0.00024345,2]
[313117290,1706766631898,-175.82035357,0.0002446,2]
[313117291,1706766631907,-11273.72383172,0.00024896,2]
[313117292,1706766631917,-4141.4376246,0.00025,2]
[313117293,1706766631926,-613.68438635,0.00025,2]
[313117294,1706766631935,-307.42675596,0.00025,2]
[313117295,1706766631945,-1025.97688255,0.00025,2]
[313117296,1706766631954,-6101.18601201,0.00025,2]
[313117297,1706766631963,-1036.36182794,0.00025,2]
[313117298,1706766631972,-499.99,0.00025,2]
[313117299,1706766631982,-350.0,0.00025,3]
[313117300,1706766631992,-557.40147955,0.00027,2]
[313117301,1706766632002,-400.0,0.00027,3]
[313117302,1706766632011,-168.5,0.00027397,2]
[313117303,1706766632021,-500.0,0.000274,2]
[313117304,1706766632030,-377.58,0.00027483,2]
[313117305,1706766632039,-175.82035355,0.00027597,2]
[313117306,1706766632048,-168.5,0.00028082,2]
[313117307,1706766632058,-168.5,0.00028767,2]
[313117308,1706766632067,-206.3116455,0.00029,6]
[313117310,1706766632077,-450.0,0.00029,3]
[313117311,1706766632086,-2500.0,0.00029016,3]
[313117313,1706766632095,-2000.0,0.0002903,2]
[313117315,1706766632104,-458.36,0.00029104,2]
[313117317,1706766632113,-500.0,0.00029104,2]
[313117319,1706766632122,-1000.0,0.00029153,2]
[313117322,1706766632132,-250.0,0.00029153,2]
[313117323,1706766632140,-22590.2,0.00029154,2]
[313117325,1706766632150,-689.21,0.00029154,2]
[313117327,1706766632159,-250.0,0.00029177,2]
[313117329,1706766632168,-500.0,0.00029271,2]
[313117331,1706766632177,-200.0,0.0002929,2]
[313117333,1706766632185,-856.89,0.00029302,2]
[313117334,1706766632194,-1917.69,0.00029392,2]
[313117335,1706766632409,-249.97,0.00029398,2]
[313117336,1706766632420,-23900.0,0.00029412,2]
[313117337,1706766632429,-155.82,0.00029442,2]
[313117338,1706766632438,-168.5,0.00029452,2]
[313117339,1706766632447,-150.0,0.00029541,2]
[313117340,1706766632456,-155.82,0.00029581,2]
[313117341,1706766632465,-155.82,0.00029721,2]
[313117342,1706766632474,-377.58,0.00029747,2]
[313117343,1706766632483,-155.82,0.0002986,2]
[313117344,1706766632492,-192.29,0.00029868,2]
[313117345,1706766632503,-1835.35,0.00029868,2]
[313117346,1706766632513,-150.0,0.00029868,2]
[313117347,1706766632523,-597.48018043,0.00029925,2]
[313117348,1706766632532,-250.0,0.00029926,2]
[313117349,1706766632541,-155.82,0.0003,2]
[313117350,1706766632552,-500.0,0.0003,2]
[313117351,1706766632561,-614.72,0.00030129,10]
[313117352,1706766632570,-155.0,0.00030134,2]
[313117353,1706766632578,-457.78772204,0.00030135,4]
[313117354,1706766632588,-168.5,0.00030137,2]
[313117355,1706766632597,-155.82,0.00030139,2]
[313117356,1706766632606,-513.22,0.00030142,2]
[313117357,1706766632615,-155.82,0.00030279,2]
[313117358,1706766632624,-10009.76614107,0.0003041,2]
[313117359,1706766632633,-155.82,0.00030418,2]
[313117360,1706766632642,-155.82,0.00030558,2]
[313117361,1706766632651,-458.36,0.00030559,2]
[313117362,1706766632660,-209.0,0.00030603,2]
[313117363,1706766632669,-155.82,0.00030697,2]
[313117364,1706766632679,-2910.0,0.000307,2]
[313117365,1706766632688,-5597.0,0.000307,2]
[313117366,1706766632697,-175.82035355,0.00030735,2]
[313117367,1706766632706,-885.2,0.0003078,10]
[313117368,1706766632715,-737.67,0.0003078,10]
[313117369,1706766632724,-5933.09478866,0.0003079,4]
[313117370,1706766632733,-378.56186681,0.0003079,4]
[313117371,1706766632741,-229.61225106,0.00030791,4]
[313117372,1706766632751,-602.55948382,0.00030791,4]
[313117373,1706766632760,-14256.84060468,0.00030791,4]
[313117374,1706766632769,-168.5,0.00030822,2]
[313117375,1706766632778,-155.82,0.00030837,2]
[313117376,1706766632787,-155.82,0.00030976,2]
[313117377,1706766632796,-500.0,0.00031,3]
[313117378,1706766632805,-1917.69,0.00031036,2]
[313117379,1706766632814,-167.61,0.00031185,2]
[313117380,1706766632823,-283.18,0.00031238,2]
[313117381,1706766632832,-1000.0,0.000315,2]
[313117382,1706766632841,-168.5,0.00031507,2]
[313117383,1706766632850,-1000.0,0.00032,3]
[313117384,1706766632859,-377.58,0.0003201,2]
[313117385,1706766632869,-458.36,0.00032014,2]
[313117386,1706766632878,-155.8,0.00032129,2]
[313117387,1706766632888,-1885.41870573,0.00032167,4]
[313117388,1706766632899,-154.28,0.00032362,2]
[313117389,1706766632909,-43250.1969,0.00032476,2]
[313117390,1706766632920,-1194.69463392,0.00032476,2]
[313117391,1706766632930,-1194.69463386,0.00032544,2]
[313117392,1706766632941,-288.46573173,0.00032575,4]
[313117393,1706766632950,-28942.61444157,0.00032576,2]
[313117394,1706766632964,-450.037073,0.00032576,2]
[313117395,1706766632984,-5205.90023532,0.00032576,2]
[313117396,1706766632997,-7823.30645451,0.00032576,2]
[313117397,1706766633010,-1922.86375946,0.00032576,2]
[313117398,1706766633022,-1186.83409097,0.00032576,2]
[313117399,1706766633034,-1204.42537218,0.00032576,2]
[313117400,1706766633048,-599.51586882,0.00032576,2]
[313117401,1706766633065,-358.50513656,0.00022982,2]
[313117402,1706766633074,-2242.47951671,0.00032576,2]
[313117403,1706766633085,-252.636,0.00032576,2]
[313117404,1706766633112,-1705.90980672,0.00032576,2]
[313117405,1706766633123,-24621.38568074,0.00032576,2]
[313117406,1706766633133,-1194.69463386,0.00032611,2]
[313117407,1706766633144,-397.54034757,0.00032674,4]
[313117408,1706766633154,-1374.81657454,0.00032674,4]
[313117409,1706766633163,-155.42920267,0.00032674,4]
[313117410,1706766633172,-252.04278177,0.00032674,4]
[313117411,1706766633182,-586.01761731,0.00032675,2]
[313117412,1706766633191,-328.8002,0.00032676,2]
[313117413,1706766633200,-18476.98973475,0.00032676,2]
[313117414,1706766633211,-4614.60439857,0.00032676,2]
[313117415,1706766633222,-363.36373079,0.00032676,2]
[313117416,1706766633233,-381.83359728,0.00032676,2]
[313117431,1706766637835,-165.33975295,0.00022982,2]
[313117432,1706766637844,-14868.79595433,0.00032676,2]
[313117433,1706766637870,-23941.35758428,0.00032676,2]
[313117434,1706766637880,-1173.0297,0.00032676,2]
[313117435,1706766637889,-1194.69463386,0.00032679,2]
[313117436,1706766637898,-1917.69,0.00032679,2]
[313117437,1706766637907,-1194.69463386,0.00032746,2]
[313117438,1706766637916,-1637.0821,0.00032776,2]
[313117439,1706766637925,-19109.9488,0.00032776,2]
[313117440,1706766637934,-305.50939175,0.00032776,2]
[313117441,1706766637944,-541.4513,0.00032791,2]
[313117442,1706766637954,-154.61516559,0.00032794,2]
[313117443,1706766637963,-1000.0,0.00032798,2]
[313117444,1706766637972,-1194.69463386,0.00032814,2]
[313117445,1706766637981,-205.0201,0.00032848,4]
[313117446,1706766637991,-180.0,0.00032855,2]
[313117447,1706766638000,-163.39778559,0.00032875,2]
[313117448,1706766638010,-500.0,0.00032876,2]
[313117449,1706766638020,-500.0,0.00032876,2]
[313117450,1706766638029,-500.0,0.00032876,2]
[313117451,1706766638038,-500.0,0.00032876,2]
[313117452,1706766638047,-500.0,0.00032876,2]
[313117453,1706766638056,-520.37220388,0.00032876,2]
[313117454,1706766638066,-500.0,0.00032876,2]
[313117455,1706766638075,-500.0,0.00032876,2]
[313117456,1706766638084,-500.0,0.00032876,2]
[313117457,1706766638093,-189.8198519,0.00032876,2]
[313117458,1706766638103,-1000.0,0.00032876,21]
[313117459,1706766638112,-604.01596964,0.00032876,2]
[313117460,1706766638122,-261.07114524,0.00032876,2]
[313117461,1706766638131,-500.0,0.00032876,2]
[313117462,1706766638141,-500.0,0.00032876,2]
[313117463,1706766638150,-500.0,0.00032876,2]
[313117464,1706766638160,-500.0,0.00032876,2]
[313117465,1706766638170,-519.4208246,0.00032876,2]
[313117467,1706766638179,-500.0,0.00032876,2]
[313117469,1706766638188,-529.8942393,0.00032876,2]
[313117471,1706766638197,-500.0,0.00032876,2]
[313117473,1706766638206,-500.0,0.00032876,2]
[313117475,1706766638216,-29.40256666,0.00032876,2]
[313117478,1706766638229,-470.59743334,0.00032876,2]
[313117480,1706766638238,-512.04792328,0.00032876,2]
[313117482,1706766638247,-500.0,0.00032876,2]
[313117484,1706766638261,-631.56,0.00032876,2]
[313117486,1706766638270,-1000.0,0.00032876,7]
[313117488,1706766638280,-686.01,0.00032876,2]
[313117490,1706766638290,-500.0,0.00032876,2]
[313117492,1706766638300,-215.0994061,0.00032876,2]
[313117494,1706766638309,-500.0,0.00032876,2]
[313117496,1706766638319,-500.0,0.00032876,2]
[313117498,1706766638329,-295.31514899,0.00032876,2]
[313117500,1706766638338,-500.0,0.00032876,2]
[313117502,1706766638348,-500.0,0.00032876,2]
[313117504,1706766638358,-500.0,0.00032876,2]
[313117506,1706766638368,-500.0,0.00032876,2]
[313117508,1706766638378,-500.0,0.00032876,2]
[313117510,1706766638388,-500.0,0.00032876,2]
[313117511,1706766638397,-631.42102179,0.00032876,2]
[313117512,1706766638407,-500.0,0.00032876,2]
[313117513,1706766638417,-1045.35,0.00032876,7]
[313117514,1706766638426,-1057.09,0.00032876,2]
[313117515,1706766638435,-606.79,0.00032876,2]
[313117516,1706766638444,-500.0,0.00032876,2]
[313117517,1706766638454,-500.0,0.00032876,2]
[313117518,1706766638463,-500.0,0.00032876,2]
[313117519,1706766638472,-500.0,0.00032876,2]
[313117520,1706766638482,-500.0,0.00032876,2]
[313117521,1706766638491,-500.0,0.00032876,10]
[313117523,1706766638503,-366.05240396,0.00032876,2]
[313117525,1706766638514,-500.0,0.00032876,2]
[313117527,1706766638524,-500.0,0.00032876,2]
[313117529,1706766638534,-500.0,0.00032876,2]
[313117531,1706766638544,-500.0,0.00032876,2]
[313117533,1706766638553,-500.0,0.00032876,2]
[313117535,1706766638563,-500.0,0.00032876,2]
[313117537,1706766638572,-500.0,0.00032876,2]
[313117539,1706766638581,-500.0,0.00032876,2]
[313117541,1706766638591,-500.0,0.00032876,2]
[313117543,1706766638600,-550.27373159,0.00032876,2]
[313117545,1706766638609,-620.63486292,0.00032876,2]
[313117547,1706766638619,-500.0,0.00032876,2]
[313117549,1706766638629,-500.0,0.00032876,2]
[313117551,1706766638639,-569.94,0.00032876,2]
[313117553,1706766638649,-500.0,0.00032876,2]
[313117555,1706766638658,-350.44610537,0.00032876,2]
[313117557,1706766638667,-615.41130962,0.00032876,2]
[313117559,1706766638677,-500.0,0.00032876,2]
[313117561,1706766638687,-506.2252133,0.00032876,2]
[313117564,1706766638696,-500.0,0.00032876,2]
[313117566,1706766638706,-1159.62,0.00032876,2]
[313117568,1706766638715,-500.0,0.00032876,2]
[313117570,1706766638724,-500.0,0.00032876,2]
[313117572,1706766638733,-500.0,0.00032876,2]
[313117574,1706766638743,-500.0,0.00032876,2]
[313117576,1706766638754,-500.0,0.00032876,2]
[313117578,1706766638763,-500.0,0.00032876,2]
[313117580,1706766638772,-500.0,0.00032876,2]
[313117582,1706766638781,-500.0,0.00032876,2]
[313117584,1706766638790,-505.76,0.00032876,2]
[313117586,1706766638799,-386.06526422,0.00032876,2]
[313117588,1706766638808,-500.0,0.00032876,2]
[313117590,1706766638817,-500.0,0.00032876,2]
[313117592,1706766638827,-500.0,0.00032876,2]
[313117594,1706766638836,-500.0,0.00032876,2]
[313117596,1706766638845,-500.0,0.00032876,2]
[313117598,1706766638854,-500.0,0.00032876,2]
[313117600,1706766638863,-505.63850174,0.00032876,2]
[313117602,1706766638872,-500.0,0.00032876,2]
[313117604,1706766638882,-500.0,0.00032876,2]
[313117606,1706766638892,-500.0,0.00032876,2]
[313117608,1706766638901,-500.0,0.00032876,2]
[313117610,1706766638910,-500.0,0.00032876,2]
[313117612,1706766638919,-796.94,0.00032876,2]
[313117614,1706766638928,-500.0,0.00032876,2]
[313117616,1706766638938,-500.0,0.00032876,2]
[313117618,1706766638947,-67.23386058,0.00032876,2]
[313117621,1706766638969,-652.02101257,0.00032876,2]
[313117624,1706766638984,-221.94512685,0.00032876,2]
[313117626,1706766638993,-500.0,0.00032876,2]
[313117628,1706766639002,-500.0,0.00032876,2]
[313117629,1706766639011,-500.0,0.00032876,2]
[313117631,1706766639021,-500.0,0.00032876,2]
[313117633,1706766639030,-500.0,0.00032876,2]
[313117635,1706766639039,-500.0,0.00032876,2]
[313117637,1706766639049,-500.0,0.00032876,2]
[313117639,1706766639058,-500.0,0.00032876,2]
[313117642,1706766639068,-116.51984821,0.00032876,2]
[313117646,1706766639096,-658.75015179,0.00032876,2]
[313117648,1706766639106,-183.64185017,0.00032876,2]
[313117766,1706766640310,-316.35814983,0.00032876,2]
[313117768,1706766640320,-280.64931702,0.00032876,2]
[313117770,1706766640331,-631.35,0.00032876,2]
[313117774,1706766640366,-397.20681402,0.00032876,2]
[313117781,1706766640424,-53.98386896,0.00032876,2]
[313117783,1706766640434,-916.87,0.00032876,2]
[313117785,1706766640443,-1168.81,0.00032876,2]
[313117786,1706766640452,-1205.22,0.00032876,2]
[313117788,1706766640461,-457.78078341,0.00032876,2]
[313117790,1706766640471,-500.0,0.00032876,2]
[313117792,1706766640480,-500.0,0.00032876,2]
[313117794,1706766640490,-500.0,0.00032876,2]
[313117796,1706766640500,-500.0,0.00032876,2]
[313117798,1706766640512,-500.0,0.00032876,2]
[313117800,1706766640521,-500.0,0.00032876,2]
[313117802,1706766640530,-500.0,0.00032876,2]
[313117804,1706766640539,-992.43,0.00032876,2]
[313117806,1706766640549,-500.0,0.00032876,2]
[313117808,1706766640558,-543.23,0.00032876,2]
[313117809,1706766640567,-500.0,0.00032876,2]
[313117811,1706766640577,-500.0,0.00032876,2]
[313117813,1706766640587,-500.0,0.00032876,2]
[313117815,1706766640596,-500.0,0.00032876,2]
[313117817,1706766640605,-500.0,0.00032876,2]
[313117819,1706766640615,-2268.39,0.00032876,2]
[313117821,1706766640624,-811.89,0.00032876,2]
[313117823,1706766640633,-1035.56,0.00032876,2]
[313117825,1706766640642,-860.85,0.00032876,2]
[313117827,1706766640651,-500.0,0.00032876,2]
[313117829,1706766640660,-500.0,0.00032876,2]
[313117831,1706766640669,-500.0,0.00032876,2]
[313117833,1706766640679,-1075.17,0.00032876,2]
[313117835,1706766640688,-500.0,0.00032876,2]
[313117836,1706766640697,-500.0,0.00032876,2]
[313117838,1706766640706,-4194.66,0.00032876,2]
[313117839,1706766640715,-500.0,0.00032876,2]
[313117840,1706766640724,-10000.0,0.00032876,3]
[313117841,1706766640733,-712.78,0.00032876,2]
[313117842,1706766640742,-500.0,0.00032876,2]
[313117843,1706766640751,-500.0,0.00032876,2]
[313117844,1706766640761,-633.30667643,0.00032876,2]
[313117845,1706766640770,-500.0,0.00032876,2]
[313117846,1706766640780,-500.0,0.00032876,2]
[313117847,1706766640789,-230.75114209,0.00032876,2]
[313117848,1706766640801,-269.24885791,0.00032876,2]
[313117849,1706766640810,-224.08595657,0.00032876,2]
[313117850,1706766640821,-317.37404343,0.00032876,2]
[313117851,1706766640989,-500.0,0.00032876,2]
[313117852,1706766641029,-500.0,0.00032876,2]
[313117853,1706766641039,-500.0,0.00032876,2]
[313117854,1706766641049,-500.0,0.00032876,2]
[313117855,1706766641058,-500.0,0.00032876,2]
[313117856,1706766641068,-69.10348062,0.00032876,20]
[313117857,1706766641180,-532.90944327,0.00032876,20]
[313117858,1706766641189,-692.79449637,0.00032876,2]
[313117859,1706766641534,-273.06550363,0.00032876,2]
[313117860,1706766641543,-351.43823367,0.00032876,2]
[313117872,1706766642794,-459.52724864,0.00032875,4]
[313117873,1706766642806,-792.70120162,0.00032875,4]
[313117874,1706766642849,-495.13548268,0.00032875,4]
[313117875,1706766642906,-78.50853151,0.00032875,4]
[313117876,1706766642915,-148.56176633,0.00032876,2]
[313117877,1706766642924,-500.0,0.00032876,2]
[313117878,1706766642934,-500.0,0.00032876,2]
[313117879,1706766642943,-421.9520191,0.00032876,2]
[313117880,1706766642962,-78.0479809,0.00032876,2]
[313117881,1706766642972,-504.96,0.00032876,2]
[313117882,1706766642981,-500.0,0.00032876,2]
[313117883,1706766642990,-387.25964601,0.00032876,2]
[313117884,1706766643002,-169.96035399,0.00032876,2]
[313117885,1706766643012,-500.0,0.00032876,2]
[313117886,1706766643021,-500.0,0.00032876,2]
[313117887,1706766643031,-1651.04521174,0.00032876,2]
[313117888,1706766643042,-709.27478826,0.00032876,2]
[313117889,1706766643053,-500.0,0.00032876,2]
[313117890,1706766643062,-500.0,0.00032876,2]
[313117891,1706766643072,-597.05954691,0.00032876,2]
[313117892,1706766643081,-647.51,0.00032876,2]
[313117893,1706766643091,-925.74,0.00032876,2]
[313117894,1706766643100,-525.59216702,0.00032876,2]
[313117895,1706766643108,-661.45,0.00032876,2]
[313117896,1706766643117,-500.0,0.00032876,2]
[313117897,1706766643126,-260.66793208,0.00032876,2]
[313117898,1706766643138,-239.33206792,0.00032876,2]
[313117899,1706766643147,-500.0,0.00032876,2]
[313117900,1706766643156,-500.0,0.00032876,2]
[313117901,1706766643166,-500.0,0.00032876,2]
[313117902,1706766643175,-500.0,0.00032876,2]
[313117903,1706766643184,-500.0,0.00032876,2]
[313117905,1706766643194,-500.0,0.00032876,2]
[313117906,1706766643203,-536.98018377,0.00032876,2]
[313117907,1706766643220,-871.23723563,0.00032876,2]
[313117908,1706766645905,-401.93,0.0003,2]
[313117909,1706766646072,-98.07,0.0003,2]
[313117910,1706766646082,-512.27,0.00032866,10]
[313117911,1706766646092,-155.0,0.00032875,2]
[313117912,1706766646102,-871.5425806,0.00032876,2]
[313117913,1706766646111,-500.0,0.00032876,2]
[313117914,1706766646121,-500.0,0.00032876,2]
[313117915,1706766646130,-500.0,0.00032876,2]
[313117916,1706766646139,-838.07,0.00032876,2]
[313117917,1706766646148,-500.0,0.00032876,2]
[313117918,1706766646158,-664.4,0.00032876,2]
[313117919,1706766646167,-520.29,0.00032876,2]
[313117920,1706766646176,-1000.0,0.00032876,7]
[313117922,1706766646186,-500.0,0.00032876,2]
[313117923,1706766646194,-500.0,0.00032876,2]
[313117925,1706766646204,-539.12847806,0.00032876,2]
[313117927,1706766646213,-500.0,0.00032876,2]
[313117929,1706766646223,-500.0,0.00032876,2]
[313117931,1706766646233,-204.78999988,0.00032876,2]
[313117933,1706766646265,-382.51727014,0.00032876,2]
[313117934,1706766654056,5193.4389,0.000249,90]
[313117935,1706766679921,158.9509689,0.00022079,2]
[313117936,1706766721708,1025.97688255,0.00022079,2]
[313117937,1706766739709,939.98174042,0.00022079,2]
[313117938,1706766832974,295.20145599,0.00022079,2]
[313117939,1706766849830,8516.99939179,0.00022079,2]
[313117940,1706766860068,255.63411561,0.00021858,2]
[313117944,1706766937379,592.46467689,0.00020696,2]
[313117945,1706766939960,208.70021055,0.00020696,2]
[313117949,1706766990871,392.34,0.00022191,2]
[313117950,1706766994877,166.99,0.00022143,2]
[313117952,1706767055967,162.06996588,0.00020696,2]
[313117953,1706767077132,1092.36,0.00022049,2]
[313117954,1706767115778,2244.55,0.00022056,2]
[313117955,1706767146538,229.92,0.00021947,2]
[313117956,1706767174601,202.66461481,0.00021918,2]
[313117957,1706767177601,176.8,0.00022,2]
[313117958,1706767190743,500.0,0.00022,2]
[313117959,1706767192193,493.05,0.00019906,2]
[313117960,1706767192505,493.05,0.0002217,2]
[313117961,1706767222972,302.1607977,0.00022501,2]
[313117962,1706767231764,155.0,0.00022501,2]
[313117963,1706767232520,2532.66,0.00021845,2]
[313117964,1706767241922,264.18913255,0.00022501,2]
[313117965,1706767242537,2604.99999666,0.00022501,2]
[313117966,1706767252064,251.01418048,0.00022501,2]
[313117967,1706767255679,13049.50518176,0.00022501,2]
[313117968,1706767264390,289.8120016,0.00022501,2]
[313117969,1706767273656,4712.24174168,0.00022501,2]
[313117970,1706767276783,3339.07998157,0.00022501,2]
[313117971,1706767290025,1063.0,0.00022501,2]
[313117972,1706767346059,1405.38168169,0.00022501,2]
[313117973,1706767348902,155.0,0.00022501,2]
[313117974,1706767352340,839.8,0.00021914,2]
[313117975,1706767353491,1207.1578119,0.00022501,2]
[313117976,1706767366414,600.0,0.00021914,2]
[313117977,1706767382002,150.0,0.00022501,2]
[313117978,1706767390386,250.0,0.00021927,2]
[313117979,1706767419839,23900.0,0.00021927,2]
[313117980,1706767420905,8648.3,0.00021824,2]
[313117981,1706767423386,500.0,0.00021927,2]
[313117982,1706767427419,155.0,0.00022501,2]
[313117983,1706767455145,183.34,0.00021927,2]
[313117984,1706767492147,160.6,0.00022116,2]
[313117985,1706767492350,160.6,0.0002222,2]
[313117986,1706767492568,160.6,0.00022325,2]
[313117987,1706767492778,160.6,0.0002243,2]
[313117988,1706767516916,-19053.02700194,0.00022502,2]
[313117989,1706767516942,-158.19263799,0.0002251,2]
[313117990,1706767516966,-160.6,0.00022535,2]
[313117991,1706767516988,-176.8,0.00022548,2]
[313117992,1706767517011,-158.19263799,0.00022575,2]
[313117993,1706767517032,-499.99,0.00022607,2]
[313117994,1706767517055,-483.84706053,0.00022612,2]
[313117995,1706767517077,-228.85160586,0.00022613,2]
[313117996,1706767517100,-160.6,0.00022639,2]
[313117997,1706767517124,-158.19263799,0.0002264,2]
[313117998,1706767517148,-158.19263799,0.00022705,2]
[313117999,1706767517170,-160.6,0.00022744,2]
[313118000,1706767517192,-248.33395542,0.00022766,2]
[313118001,1706767517217,-158.19263799,0.0002277,2]
[313118002,1706767517239,-9564.74,0.00022831,2]
[313118003,1706767517262,-158.19263799,0.00022835,2]
[313118004,1706767517285,-160.6,0.00022849,2]
[313118005,1706767517308,-832.28255479,0.00022896,2]
[313118006,1706767517330,-284.92651105,0.00022896,2]
[313118007,1706767517355,-284.92651105,0.00022897,2]
[313118008,1706767517378,-284.92651105,0.00022898,2]
[313118009,1706767517401,-284.92651105,0.00022899,2]
[313118010,1706767517425,-155.55109246,0.000229,2]
[313118011,1706767517449,-158.19263799,0.000229,2]
[313118012,1706767517470,-284.92651105,0.000229,2]
[313118013,1706767517496,-1508.85923837,0.000229,2]
[313118014,1706767517522,-160.6,0.00022954,2]
[313118015,1706767517544,-494.59,0.00022959,2]
[313118016,1706767517759,-216.75702514,0.00022973,2]
[313118017,1706767517782,-400.0,0.00022973,2]
[313118018,1706767517805,-496.64137415,0.00022993,2]
[313118019,1706767517829,-204.18636395,0.00022993,2]
[313118020,1706767517853,-155.62723127,0.00022993,2]
[313118021,1706767517875,-291.6711707,0.00022993,2]
[313118022,1706767517897,-528.2831667,0.00022993,2]
[313118023,1706767517919,-3367.79845543,0.00022993,2]
[313118024,1706767517941,-277.09025938,0.00022993,2]
[313118025,1706767517963,-504.93527156,0.00022993,2]
[313118026,1706767517986,-179.96646652,0.00022993,2]
[313118027,1706767518009,-247.89835845,0.00022993,2]
[313118028,1706767518031,-1659.82060066,0.00022994,2]
[313118029,1706767518054,-267.56927391,0.00022994,2]
[313118030,1706767518077,-252.53800664,0.00022994,2]